bitfinex/quotes_SOLUSD_20250201
["timestamp","ask_amount","ask_price","bid_price","bid_amount"]
[1738424643997,0.03,226.87,226.77,13.41184853]
[1738424644182,0.03,226.87,226.78,8.89948312]
[1738424644372,20.0,226.86,226.78,8.89948312]
[1738424644576,20.0,226.86,226.79,13.41184853]
[1738424644882,20.0,226.86,226.8,0.66128546]
[1738424645405,20.0,226.86,226.76,9.76463758]
[1738424645601,20.0,226.86,226.76,1.5264]
[1738424645800,20.03,226.87,226.76,1.5264]
[1738424646484,1.0,226.85,226.76,1.5264]
[1738424647699,21.0,226.85,226.76,1.5264]
[1738424647903,21.0,226.85,226.72,0.6614912]
[1738424648089,20.0,226.81,226.72,0.6614912]
[1738424648603,20.0,226.81,226.71,14.0733769]
[1738424648989,21.0,226.81,226.75,0.063]
[1738424650198,1.0,226.8,226.75,0.063]
[1738424650398,20.0,226.77,226.75,0.063]
[1738424657452,82.6,226.8,226.75,0.063]
[1738424658098,20.0,226.77,226.75,0.063]
[1738424668718,21.12158348,226.77,226.75,0.063]
[1738424673050,20.0,226.77,226.75,0.063]
[1738424687038,82.63,226.8,226.75,0.063]
[1738424687657,20.03,226.77,226.75,0.063]
[1738424690858,0.03,226.77,226.75,0.063]
[1738424692493,0.03,226.77,226.75,13.47484853]
[1738424692648,0.03,226.77,226.76,0.66138314]
[1738424693268,0.03,226.77,226.75,14.13624882]
[1738424700566,0.03,226.77,226.75,0.063]
[1738424709994,20.0,226.76,226.75,0.063]
[1738424717697,1.0,226.7,226.69,0.063]
[1738424717895,1.0,226.7,226.65,0.063]
[1738424718097,20.0,226.67,226.65,0.063]
[1738424718273,82.6,226.66,226.65,0.063]
[1738424718966,20.0,226.64,226.63,0.063]
[1738424721890,21.0,226.64,226.63,0.063]
[1738424722205,84.68028577,226.66,226.55,0.063]
[1738424722206,20.0,226.63,226.55,0.063]
[1738424723012,20.0,226.59,226.55,0.063]
[1738424723200,20.0,226.56,226.55,0.063]
[1738424723784,2.0,226.58,226.55,0.063]
[1738424723984,1.0,226.58,226.55,0.063]
[1738424724314,20.0,226.59,226.55,0.063]
[1738424727583,82.6,226.6,226.55,0.063]
[1738424729105,20.0,226.57,226.55,0.063]
[1738424730506,82.6,226.56,226.55,0.063]
[1738424735793,82.6,226.62,226.55,0.063]
[1738424735998,20.0,226.58,226.55,0.063]
[1738424741701,82.6,226.57,226.55,0.063]
[1738424741905,82.6,226.56,226.55,0.063]
[1738424742549,1.0,226.56,226.55,0.063]
[1738424743127,82.6,226.55,226.49,0.063]
[1738424743330,20.0,226.51,226.49,0.063]
[1738424744540,84.6,226.5,226.42,0.063]
[1738424744832,20.0,226.46,226.42,0.063]
[1738424747332,82.6,226.49,226.42,0.063]
[1738424748810,20.0,226.46,226.42,0.063]
[1738424754430,20.0,226.43,226.42,0.063]
[1738424761535,82.6,226.45,226.42,0.063]
[1738424762063,82.6,226.44,226.42,0.063]
[1738424766228,82.6,226.43,226.42,0.063]
[1738424769054,0.03,226.49,226.42,0.063]
[1738424769055,82.6,226.48,226.42,0.063]
[1738424771758,82.6,226.48,226.42,26.36136452]
[1738424771941,82.6,226.48,226.43,8.59969671]
[1738424772146,82.6,226.48,226.44,12.88651599]
[1738424772648,82.6,226.48,226.43,8.59969671]
[1738424774748,82.6,226.48,226.43,7.9373]
[1738424775864,82.63,226.48,226.43,7.9373]
[1738424778644,82.63,226.48,226.43,1.5181]
[1738424779867,82.63,226.48,226.42,0.063]
[1738424780066,20.0,226.45,226.42,0.063]
[1738424781167,82.6,226.44,226.42,0.063]
[1738424785278,82.6,226.44,226.42,12.94951599]
[1738424785477,82.6,226.44,226.43,13.41184853]
[1738424785856,82.6,226.44,226.42,13.61195384]
[1738424786574,82.6,226.44,226.43,13.41184853]
[1738424786884,82.6,226.44,226.43,14.99234853]
[1738424787051,0.03,226.48,226.44,6.2201]
[1738424787249,0.03,226.48,226.47,12.88651599]
[1738424787460,0.03,226.48,226.47,26.96057348]
[1738424792562,0.03,226.48,226.47,14.07405749]
[1738424792959,0.03,226.48,226.47,0.66220896]
[1738424793289,0.03,226.48,226.43,1.5805]
[1738424793465,82.6,226.47,226.42,0.063]
[1738424793789,82.6,226.46,226.42,0.7254303]
[1738424794152,82.6,226.46,226.42,0.063]
[1738424798886,0.03,226.48,226.42,0.72541549]
[1738424799066,0.03,226.48,226.43,13.41184853]
[1738424799385,0.03,226.48,226.44,0.66231572]
[1738424801584,0.03,226.48,226.47,12.88651599]
[1738424801780,0.03,226.48,226.47,26.96057387]
[1738424802887,0.03,226.48,226.47,31.37607387]
[1738424803795,0.03,226.48,226.47,26.96057387]
[1738424805591,0.03,226.48,226.47,28.56827387]
[1738424805795,0.03,226.48,226.47,39.40357387]
[1738424806089,0.03,226.48,226.47,40.40357387]
[1738424807091,0.03,226.48,226.47,41.40357387]
[1738424807263,0.03,226.48,226.47,40.40357387]
[1738424807791,0.03,226.48,226.47,41.40357387]
[1738424808096,0.03,226.48,226.47,54.41557986]
[1738424808297,0.03,226.48,226.47,54.66655986]
[1738424808778,0.03,226.48,226.47,41.78004387]
[1738424812003,0.03,226.49,226.48,17.95273853]
[1738424816219,0.03,226.49,226.48,17.82724853]
[1738424816374,0.03,226.49,226.48,18.48925068]
[1738424816580,0.03,226.49,226.48,17.07385068]
[1738424817676,0.03,226.49,226.48,14.07385068]
[1738424819177,0.03,226.49,226.46,0.72523028]
[1738424819596,0.03,226.49,226.47,13.41184853]
[1738424821412,0.03,226.49,226.46,0.72523028]
[1738424821581,0.03,226.49,226.46,0.063]
[1738424822576,0.03,226.49,226.46,0.72522784]
[1738424824012,0.03,226.49,226.46,0.063]
[1738424825776,82.6,226.48,226.46,0.063]
[1738424831622,82.6,226.47,226.46,0.063]
[1738424835814,20.0,226.47,226.46,0.063]
[1738424839332,20.0,226.47,226.42,0.063]
[1738424839333,1.5873,226.45,226.42,0.063]
[1738424839487,2.5873,226.45,226.42,0.063]
[1738424839692,13.41184853,226.44,226.42,0.063]
[1738424841005,14.41184853,226.43,226.42,0.063]
[1738424841531,2.5873,226.45,226.42,0.063]
[1738424842029,13.41184853,226.44,226.42,0.063]
[1738424842596,1.5873,226.45,226.42,0.063]
[1738424842821,20.0,226.43,226.42,0.063]
[1738424843532,1.5873,226.45,226.42,0.063]
[1738424846303,20.0,226.46,226.42,0.063]
[1738424853943,20.0,226.45,226.42,0.063]
[1738424854239,21.0,226.45,226.42,0.063]
[1738424854638,1.0,226.43,226.41,0.063]
[1738424854809,20.0,226.42,226.41,0.063]
[1738424855141,20.0,226.41,226.4,0.063]
[1738424856921,34.41184853,226.41,226.4,0.063]
[1738424857120,35.51371319,226.41,226.4,0.063]
[1738424857636,20.0,226.37,226.35,0.03]
[1738424858940,82.6,226.36,226.35,0.03]
[1738424861344,22.20273456,226.41,226.35,0.03]
[1738424861637,21.10186466,226.41,226.35,0.03]
[1738424862336,20.0,226.41,226.35,0.03]
[1738424865041,20.0,226.37,226.35,0.03]
[1738424865239,8.43766324,226.48,226.35,0.03]
[1738424865240,82.6,226.39,226.35,0.03]
[1738424865720,82.6,226.39,226.36,1.5802]
[1738424865919,82.6,226.39,226.36,2.24277434]
[1738424866515,82.6,226.39,226.36,6.66037434]
[1738424866714,82.6,226.39,226.37,13.41184853]
[1738424867027,0.03,226.48,226.39,13.41184853]
[1738424867028,80.9334,226.47,226.39,13.41184853]
[1738424867230,80.9334,226.46,226.4,0.66240874]
[1738424870244,80.9334,226.45,226.4,0.66240874]
[1738424874045,80.9334,226.45,226.4,0.72540874]
[1738424874246,80.9334,226.45,226.4,0.063]
[1738424876149,80.9334,226.45,226.4,4.4799]
[1738424876351,80.9334,226.45,226.41,0.66241659]
[1738424876938,80.9334,226.45,226.4,0.72543101]
[1738424882229,80.9334,226.44,226.4,0.72543101]
[1738424882550,80.9334,226.44,226.4,0.063]
[1738424882735,80.9334,226.44,226.4,5.14234776]
[1738424885352,0.03,226.46,226.42,8.24414658]
[1738424885555,0.03,226.46,226.45,21.65599511]
[1738424885926,0.03,226.46,226.45,13.41184853]
[1738424887632,0.03,226.46,226.43,2.27216769]
[1738424887952,0.03,226.46,226.43,1.6099]
[1738424889155,0.03,226.46,226.44,0.66237177]
[1738424891956,0.03,226.46,226.43,2.27224171]
[1738424896934,0.03,226.46,226.43,6.68854171]
[1738424897752,0.03,226.46,226.44,13.41184853]
[1738424897955,0.03,226.46,226.45,0.6623116]
[1738424898257,0.03,226.46,226.45,14.07416013]
[1738424899859,0.03,226.46,226.45,13.41184853]
[1738424902268,0.03,226.46,226.43,2.27221905]
[1738424903564,0.03,226.46,226.43,0.66231905]
[1738424904070,0.03,226.46,226.44,13.41184853]
[1738424904242,0.03,226.46,226.45,0.66229014]
[1738424904961,0.03,226.46,226.45,8.90643672]
[1738424905139,0.03,226.46,226.45,13.32233672]
[1738424907360,0.03,226.46,226.45,0.66229014]
[1738424907680,0.03,226.46,226.44,0.66229417]
[1738424910069,0.03,226.46,226.45,8.24414658]
[1738424910380,0.03,226.46,226.45,21.65599511]
[1738424911775,0.03,226.46,226.45,26.07189511]
[1738424911955,0.03,226.46,226.45,26.73410251]
[1738424912657,0.03,226.46,226.45,14.07405593]
[1738424914082,80.9634,226.46,226.4,0.063]
[1738424919277,80.9634,226.46,226.4,0.72540365]
[1738424919477,80.9634,226.46,226.4,5.14230365]
[1738424920475,80.9634,226.46,226.41,26.07259511]
[1738424920774,0.03,226.46,226.45,8.24414658]
[1738424920980,0.03,226.46,226.45,21.65599511]
[1738424922462,0.03,226.46,226.45,13.41184853]
[1738424927286,0.03,226.46,226.45,21.65599511]
[1738424929487,0.03,226.46,226.45,8.24414658]
[1738424930086,0.03,226.46,226.45,12.66004658]
[1738424930263,0.03,226.46,226.45,26.73406437]
[1738424942400,0.03,226.49,226.48,20.0]
[1738424942737,80.9334,226.62,226.49,1.0]
[1738424942873,80.9334,226.61,226.5,8.90622026]
[1738424943067,80.9334,226.61,226.5,0.66207368]
[1738424943495,80.9334,226.6,226.48,2.98]
[1738424944270,1.6563,226.59,226.48,2.98]
[1738424944484,6.0823,226.58,226.48,2.98]
[1738424944797,87.0157,226.58,226.48,2.98]
[1738424945167,80.9334,226.57,226.45,13.41184853]
[1738424945370,80.9334,226.56,226.45,13.41184853]
[1738424947282,80.9334,226.56,226.45,17.82774853]
[1738424947683,80.9334,226.56,226.46,0.66228498]
[1738424948092,80.9334,226.56,226.45,18.49003231]
[1738424950508,80.9334,226.55,226.45,18.49003231]
[1738424953711,6.0823,226.58,226.5,8.24414658]
[1738424953712,80.9334,226.54,226.5,8.24414658]
[1738424953893,80.9334,226.54,226.52,8.24414658]
[1738424954793,80.9334,226.54,226.53,18.48834886]
[1738424959414,80.9334,226.61,226.53,18.48834886]
[1738424959619,80.9334,226.6,226.54,12.65824658]
[1738424959821,80.9334,226.6,226.53,14.07394886]
[1738424960613,80.9334,226.6,226.53,18.48824886]
[1738424960925,80.9334,226.6,226.52,8.24414658]
[1738424961095,80.9334,226.6,226.52,12.65864658]
[1738424965195,80.9334,226.6,226.53,5.0762908]
[1738424965528,80.9334,226.59,226.54,8.24414658]
[1738424967624,80.9334,226.59,226.54,13.32028192]
[1738424968521,80.9334,226.59,226.54,12.65824658]
[1738424970536,80.9334,226.59,226.58,8.24414658]
[1738424970714,0.03,226.62,226.58,8.24414658]
[1738424970715,0.03,226.62,226.59,13.41184853]
[1738424971032,0.03,226.62,226.61,21.65599511]
[1738424971903,0.03,226.62,226.61,26.06879511]
[1738424974130,0.03,226.62,226.61,26.73055071]
[1738424976625,0.03,226.62,226.61,26.06879511]
[1738424977011,0.03,226.62,226.61,26.73055369]
[1738424977914,0.03,226.62,226.61,26.06879511]
[1738424979633,0.03,226.62,226.61,26.73054505]
[1738424980443,80.9334,226.68,226.65,20.0]
[1738424980613,0.03,226.71,226.7,33.41184853]
[1738424980933,0.03,226.71,226.7,78.61258143]
[1738424981246,0.03,226.76,226.7,78.61258143]
[1738424981247,0.03,226.76,226.71,13.41184853]
[1738424981608,0.03,226.76,226.71,17.82274853]
[1738424982127,0.03,226.76,226.71,50.79933485]
[1738424982329,0.03,226.76,226.71,17.82274853]
[1738424985820,0.03,226.76,226.7,11.88568966]
[1738424986820,0.03,226.76,226.71,13.41184853]
[1738424989355,0.03,226.76,226.71,1.0]
[1738424989649,0.03,226.76,226.71,38.38748632]
[1738424989852,0.03,226.8,226.75,29.24414658]
[1738424990154,0.03,226.8,226.79,21.65599511]
[1738424990614,0.03,226.8,226.79,22.31718123]
[1738424991341,0.03,226.8,226.79,26.72648123]
[1738425003154,0.03,226.8,226.79,8.24414658]
[1738425005555,0.03,226.8,226.75,8.24414658]
[1738425005928,0.03,226.8,226.74,13.41184853]
[1738425006128,0.03,226.8,226.74,14.07330883]
[1738425007633,0.03,226.8,226.75,8.24414658]
[1738425007840,0.03,226.8,226.75,8.90558058]
[1738425008049,0.03,226.8,226.75,8.24414658]
[1738425012546,0.03,226.8,226.73,8.24414658]
[1738425013266,0.03,226.8,226.71,8.30714658]
[1738425013637,18.4296618,226.79,226.71,8.30714658]
[1738425013839,18.4296618,226.79,226.71,0.063]
[1738425014136,18.4296618,226.79,226.71,8.30714658]
[1738425017349,18.4296618,226.79,226.71,0.063]
[1738425019863,1.5705,226.78,226.71,0.063]
[1738425021162,20.0,226.74,226.71,0.063]
[1738425022772,6.6451,226.73,226.71,0.063]
[1738425027269,20.0,226.74,226.71,0.063]
[1738425027461,80.9334,226.77,226.71,0.063]
[1738425032979,0.03,226.8,226.73,8.24414658]
[1738425033648,0.03,226.79,226.73,8.24414658]
[1738425035947,0.03,226.79,226.71,8.30714658]
[1738425036366,0.03,226.79,226.71,12.71804658]
[1738425039962,0.03,226.79,226.71,4.4739]
[1738425040297,0.03,226.79,226.75,8.24414658]
[1738425040483,0.03,226.79,226.77,8.24414658]
[1738425047080,0.03,226.79,226.72,1.6081]
[1738425047283,0.03,226.79,226.71,8.30714658]
[1738425048583,0.03,226.79,226.71,0.063]
[1738425051182,0.03,226.79,226.71,8.30714658]
[1738425053061,0.03,226.79,226.73,8.24414658]
[1738425057561,0.03,226.79,226.71,8.30714658]
[1738425057892,0.03,226.79,226.71,0.063]
[1738425063492,80.9334,226.78,226.71,0.063]
[1738425063697,20.0,226.75,226.71,0.063]
[1738425067213,6.5227,226.76,226.71,0.063]
[1738425067510,80.9334,226.78,226.71,0.063]
[1738425079802,0.03,226.79,226.73,8.24414658]
[1738425081206,0.03,226.79,226.73,12.65464658]
[1738425082438,0.03,226.79,226.75,8.24414658]
[1738425089218,0.03,226.79,226.77,8.24414658]
[1738425090039,0.03,226.79,226.78,3.26066312]
[1738425091944,0.03,226.79,226.78,8.33161513]
[1738425092624,0.03,226.79,226.78,16.57576171]
[1738425094539,0.03,226.79,226.78,29.98761024]
[1738425101763,0.0001,226.79,226.78,29.98761024]
[1738425102558,0.03,226.83,226.78,29.98761024]
[1738425102744,0.03,226.83,226.82,41.65599511]
[1738425102939,0.03,226.83,226.82,42.31710724]
[1738425104063,0.03,226.83,226.82,46.06469511]
[1738425105437,0.03,226.83,226.82,46.72581703]
[1738425107962,0.03,226.83,226.82,46.06469511]
[1738425108945,0.03,226.83,226.8,12.65314658]
[1738425109570,0.03,226.83,226.78,12.65354658]
[1738425109869,0.03,226.83,226.76,4.4098]
[1738425110043,0.03,226.83,226.77,13.41184853]
[1738425110768,0.03,226.83,226.76,5.07118865]
[1738425111070,0.03,226.83,226.77,8.24414658]
[1738425112672,0.03,226.83,226.77,12.65374658]
[1738425114876,0.03,226.83,226.77,8.24414658]
[1738425115058,0.03,226.83,226.79,8.24414658]
[1738425115776,0.03,226.83,226.8,0.66130175]
[1738425116071,0.03,226.83,226.81,8.24414658]
[1738425121354,0.03,226.83,226.81,12.65304658]
[1738425122582,0.03,226.83,226.82,8.24414658]
[1738425123643,0.03,226.83,226.82,54.63258143]
[1738425124680,0.03,226.83,226.82,59.04128143]
[1738425125147,0.03,226.83,226.82,59.70237183]
[1738425125346,0.03,226.85,226.82,59.70237183]
[1738425125557,0.03,226.85,226.84,21.65599511]
[1738425125776,0.03,226.85,226.84,26.06429511]
[1738425126081,0.03,226.85,226.79,60.8406]
[1738425126082,0.03,226.85,226.8,8.90526989]
[1738425127684,0.03,226.85,226.8,13.31426989]
[1738425127865,0.03,226.85,226.8,8.90526989]
[1738425128187,0.03,226.85,226.79,52.38]
[1738425128550,1.6437,226.85,226.8,0.063]
[1738425145593,80.9334,226.84,226.8,0.063]
[1738425146092,20.0,226.81,226.8,0.063]
[1738425146391,20.0,226.81,226.8,0.0343]
[1738425146793,20.0,226.81,226.8,0.0271]
[1738425152807,1.0,226.82,226.8,0.0271]
[1738425153118,34.41184853,226.81,226.8,0.0271]
[1738425157019,1.0,226.81,226.8,0.0271]
[1738425162625,33.41184853,226.83,226.8,0.0271]
[1738425163824,0.03,226.81,226.8,0.0271]
[1738425165502,20.03,226.81,226.8,0.0271]
[1738425168936,34.44184853,226.81,226.8,0.0271]
[1738425174710,0.03,226.81,226.8,0.0271]
[1738425175732,20.03,226.81,226.8,0.0271]
[1738425184047,33.44184853,226.81,226.8,0.0271]
[1738425188862,22.0,226.78,226.77,0.063]
[1738425189031,1.0,226.76,226.71,0.063]
[1738425189227,20.0,226.72,226.71,0.063]
[1738425190048,21.0,226.72,226.71,0.063]
[1738425190552,34.41184853,226.72,226.71,0.063]
[1738425192987,20.0,226.72,226.71,0.063]
[1738425193158,82.6,226.75,226.71,0.063]
[1738425228380,20.0,226.72,226.71,0.063]
[1738425230993,18.83622597,226.72,226.71,0.063]
[1738425236624,15.41184853,226.75,226.71,0.063]
[1738425236625,1.0,226.75,226.71,0.063]
[1738425236920,20.0,226.73,226.71,0.063]
[1738425239729,20.0,226.72,226.71,0.063]
[1738425241339,21.0,226.72,226.71,0.063]
[1738425241635,35.41184853,226.72,226.71,0.063]
[1738425242903,1.0,226.68,226.59,52.4]
[1738425243135,22.0,226.68,226.59,52.4]
[1738425243439,21.0,226.64,226.59,52.4]
[1738425244624,21.0,226.62,226.57,0.063]
[1738425245205,20.0,226.62,226.57,0.063]
[1738425245733,21.0,226.62,226.57,0.063]
[1738425245933,20.0,226.62,226.57,0.063]
[1738425246234,21.0,226.62,226.57,0.063]
[1738425247236,82.6,226.61,226.57,0.063]
[1738425247732,20.0,226.58,226.57,0.063]
[1738425253743,20.0,226.6,226.57,0.063]
[1738425255944,1.0,226.63,226.57,0.063]
[1738425256243,20.0,226.63,226.57,0.063]
[1738425256951,21.0,226.66,226.57,0.063]
[1738425257116,20.0,226.62,226.57,0.063]
[1738425258063,5.98539006,226.69,226.57,0.063]
[1738425258249,13.41184853,226.68,226.57,0.063]
[1738425258818,5.98539006,226.69,226.57,0.063]
[1738425259026,1.0,226.7,226.57,0.063]
[1738425259439,1.03,226.71,226.57,0.063]
[1738425259644,21.0,226.7,226.57,4.4765]
[1738425260133,21.0,226.7,226.57,0.063]
[1738425262361,82.6,226.69,226.57,0.063]
[1738425262663,20.0,226.66,226.57,0.063]
[1738425263752,20.0,226.66,226.6,8.24414658]
[1738425263753,82.6,226.65,226.6,8.24414658]
[1738425268339,82.6,226.64,226.6,8.24414658]
[1738425268538,82.6,226.63,226.6,8.24414658]
[1738425268739,82.6,226.63,226.59,1.6502]
[1738425270637,82.6,226.63,226.6,0.6618896]
[1738425270962,82.6,226.63,226.61,8.24414658]
[1738425273867,82.6,226.63,226.6,0.6618896]
[1738425277869,82.6,226.63,226.59,10.55622317]
[1738425278970,82.6,226.63,226.59,2.31207659]
[1738425279148,82.6,226.63,226.59,1.6502]
[1738425280263,82.6,226.62,226.59,1.6502]
[1738425283873,82.6,226.62,226.57,0.063]
[1738425284652,82.6,226.62,226.59,0.063]
[1738425288882,82.6,226.62,226.59,13.38216271]
[1738425292881,82.6,226.62,226.6,13.41184853]
[1738425293100,82.6,226.62,226.61,8.24414658]
[1738425293980,82.6,226.62,226.61,26.73064943]
[1738425295190,82.6,226.7,226.61,26.73064943]
[1738425295371,82.6,226.69,226.61,26.73064943]
[1738425301195,82.6,226.68,226.61,26.73064943]
[1738425303601,82.6,226.67,226.61,26.73064943]
[1738425305789,82.6,226.67,226.6,1.564]
[1738425305992,82.6,226.67,226.59,8.30714658]
[1738425306185,82.6,226.67,226.59,0.063]
[1738425306802,82.6,226.66,226.59,0.063]
[1738425307180,82.6,226.65,226.59,0.063]
[1738425307401,82.6,226.64,226.59,0.063]
[1738425312905,82.6,226.63,226.59,0.063]
[1738425314098,82.6,226.62,226.59,0.063]
[1738425315521,20.0,226.6,226.59,0.063]
[1738425316007,20.0,226.63,226.59,0.063]
[1738425320294,20.0,226.6,226.59,0.063]
[1738425320690,34.41184853,226.6,226.59,0.063]
[1738425321702,33.41184853,226.6,226.59,0.063]
[1738425322242,34.41184853,226.6,226.59,0.063]
[1738425322597,33.41184853,226.6,226.59,0.063]
[1738425323222,34.41184853,226.6,226.59,0.063]
[1738425324297,33.41184853,226.6,226.59,0.063]
[1738425324500,34.41184853,226.6,226.59,0.063]
[1738425330827,14.41184853,226.59,226.57,0.063]
[1738425332522,14.41184853,226.58,226.57,0.063]
[1738425332824,14.41184853,226.58,226.49,0.063]
[1738425332825,20.0,226.54,226.49,0.063]
[1738425333034,102.6,226.53,226.49,0.063]
[1738425333321,103.6,226.53,226.49,0.063]
[1738425334203,20.0,226.5,226.49,0.063]
[1738425337333,1.0,226.53,226.49,0.063]
[1738425337538,1.0,226.54,226.49,0.063]
[1738425337725,13.41184853,226.53,226.49,0.063]
[1738425338322,22.0,226.5,226.48,0.063]
[1738425338532,20.0,226.46,226.4,0.063]
[1738425342749,82.6,226.45,226.4,0.063]
[1738425348032,82.6,226.45,226.41,8.24414658]
[1738425348561,82.6,226.44,226.41,8.24414658]
[1738425348732,82.6,226.52,226.41,8.24414658]
[1738425349055,20.0,226.49,226.4,0.063]
[1738425350751,102.6,226.48,226.4,0.063]
[1738425350959,82.6,226.47,226.4,0.063]
[1738425351562,20.0,226.44,226.4,0.063]
[1738425354556,82.6,226.43,226.4,0.063]
[1738425354851,82.6,226.42,226.4,0.063]
[1738425360467,82.6,226.41,226.4,0.063]
[1738425362652,20.0,226.44,226.4,0.063]
[1738425362842,1.0,226.42,226.4,0.063]
[1738425363867,13.41184853,226.41,226.4,0.063]
[1738425364164,33.41184853,226.39,226.38,0.063]
[1738425365673,14.41184853,226.38,226.36,0.063]
[1738425366846,13.41184853,226.39,226.36,0.063]
[1738425368869,20.0,226.33,226.26,0.063]
[1738425369068,82.6,226.32,226.26,0.063]
[1738425372378,82.6,226.31,226.26,0.063]
[1738425372545,82.6,226.31,226.27,8.24414658]
[1738425372747,82.6,226.31,226.28,0.66282104]
[1738425372949,82.6,226.31,226.27,8.90694704]
[1738425373446,82.6,226.31,226.27,13.32634704]
[1738425373667,82.6,226.36,226.29,8.24414658]
[1738425373972,82.6,226.36,226.31,8.24414658]
[1738425374165,82.6,226.36,226.3,0.03]
[1738425376254,82.6,226.35,226.3,0.03]
[1738425381295,82.6,226.34,226.3,0.03]
[1738425387199,82.6,226.34,226.31,8.90687628]
[1738425387373,82.6,226.34,226.32,7.9092]
[1738425387575,82.6,226.34,226.33,8.24414658]
[1738425387797,82.6,226.47,226.33,8.24414658]
[1738425387975,20.0,226.43,226.34,0.66262759]
[1738425389173,20.0,226.43,226.33,0.66263491]
[1738425393103,82.6,226.42,226.33,0.66263491]
[1738425393305,82.6,226.41,226.33,0.66263491]
[1738425396872,82.6,226.41,226.33,13.32498149]
[1738425403591,82.663,226.41,226.33,13.32498149]
[1738425405009,0.063,226.41,226.34,13.41184853]
[1738425405326,0.063,226.41,226.38,8.24414658]
[1738425405495,0.063,226.41,226.39,0.66244126]
[1738425409406,0.063,226.41,226.37,0.66246738]
[1738425421003,0.063,226.41,226.37,5.07996738]
[1738425421319,0.063,226.41,226.37,13.32411396]
[1738425421525,0.063,226.41,226.39,8.24414658]
[1738425421694,0.063,226.41,226.4,0.66242411]
[1738425421896,0.063,226.41,226.4,14.07427264]
[1738425423020,0.063,226.41,226.4,18.49117264]
[1738425423723,0.063,226.41,226.4,5.07932411]
[1738425424090,0.063,226.41,226.4,0.66242411]
[1738425424904,0.063,226.41,226.34,0.66250177]
[1738425425099,0.063,226.41,226.34,5.08040177]
[1738425427135,0.063,226.41,226.35,8.24414658]
[1738425427436,0.063,226.41,226.36,5.0802169]
[1738425429603,0.063,226.41,226.38,8.24414658]
[1738425429939,0.063,226.41,226.39,0.66247045]
[1738425430765,0.063,226.41,226.4,8.24414658]
[1738425431719,0.063,226.41,226.39,5.07947045]
[1738425432038,0.063,226.41,226.39,0.66247045]
[1738425433607,0.063,226.41,226.39,5.07957045]
[1738425445647,0.063,226.41,226.4,12.66104658]
[1738425445847,0.063,226.41,226.4,13.32342347]
[1738425446162,0.063,226.41,226.4,26.735272]
[1738425446319,0.063,226.41,226.4,28.243572]
[1738425447744,0.063,226.41,226.4,29.243572]
[1738425449153,0.063,226.41,226.4,28.243572]
[1738425450344,0.063,226.41,226.4,26.735272]
[1738425453145,0.063,226.41,226.4,22.318372]
[1738425456869,0.063,226.41,226.4,26.735272]
[1738425485379,0.063,226.41,226.4,1026.735272]
[1738425485562,0.063,226.41,226.4,1026.07289511]